fUSD/lending_fUSD_20250511
["ID","MTS","AMOUNT","RATE_DAILY","PERIOD"]
[360773405,1747006247183,-400.0,0.00014987,2]
[360773406,1747006247194,-1153.65,0.00014987,2]
[360773407,1747006247203,-400.0,0.00014987,2]
[360773408,1747006247213,-2439.45,0.00014987,2]
[360773409,1747006247222,-1153.65,0.00014987,2]
[360773410,1747006247232,-411.02614868,0.00014987,2]
[360773411,1747006247241,-2439.45,0.00014987,2]
[360773412,1747006247250,-2439.45,0.00014987,2]
[360773413,1747006247260,-400.0,0.00014987,2]
[360773414,1747006247269,-400.0,0.00014987,2]
[360773415,1747006247279,-400.0,0.00014987,2]
[360773416,1747006247288,-400.0,0.00014987,2]
[360773417,1747006247297,-400.0,0.00014987,2]
[360773418,1747006247306,-400.0,0.00014987,2]
[360773419,1747006247317,-400.0,0.00014987,2]
[360773420,1747006247327,-400.0,0.00014987,2]
[360773421,1747006247337,-3283.78,0.00014987,2]
[360773422,1747006247347,-3283.78,0.00014987,2]
[360773423,1747006247356,-400.0,0.00014987,2]
[360773424,1747006247366,-400.0,0.00014987,2]
[360773425,1747006247375,-400.0,0.00014987,2]
[360773426,1747006247384,-400.0,0.00014987,2]
[360773427,1747006247393,-400.0,0.00014987,2]
[360773428,1747006247403,-400.0,0.00014987,2]
[360773429,1747006247413,-500.0,0.00014987,2]
[360773430,1747006247425,-1036.78,0.00014987,2]
[360773431,1747006247437,-1835.83,0.00014987,2]
[360773432,1747006247448,-1036.78,0.00014987,2]
[360773433,1747006247458,-1835.83,0.00014987,2]
[360773434,1747006247467,-1036.78,0.00014987,2]
[360773435,1747006247476,-1036.78,0.00014987,2]
[360773436,1747006247486,-513.3,0.00014987,2]
[360773437,1747006247495,-400.0,0.00014987,2]
[360773438,1747006247506,-2892.16,0.00014987,2]
[360773439,1747006247515,-513.3,0.00014987,2]
[360773440,1747006247524,-400.0,0.00014987,2]
[360773441,1747006247533,-2892.16,0.00014987,2]
[360773442,1747006247542,-513.3,0.00014987,2]
[360773443,1747006247552,-400.0,0.00014987,2]
[360773444,1747006247561,-2892.16,0.00014987,2]
[360773445,1747006247571,-400.0,0.00014987,2]
[360773446,1747006247582,-1061.7,0.00014987,2]
[360773447,1747006247592,-4396.13,0.00014987,2]
[360773448,1747006247601,-4396.13,0.00014987,2]
[360773449,1747006247612,-4396.13,0.00014987,2]
[360773450,1747006247621,-471.03,0.00014987,2]
[360773451,1747006247630,-471.03,0.00014987,2]
[360773452,1747006247640,-765.41,0.00014987,2]
[360773453,1747006247649,-765.41,0.00014987,2]
[360773454,1747006247659,-400.0,0.00014987,2]
[360773455,1747006247669,-765.41,0.00014987,2]
[360773456,1747006247678,-400.0,0.00014987,2]
[360773457,1747006247688,-400.0,0.00014987,2]
[360773458,1747006247698,-400.0,0.00014987,2]
[360773459,1747006247708,-400.0,0.00014987,2]
[360773460,1747006247717,-263.32660264,0.00014987,2]
[360773461,1747006247727,-1705.85,0.00014987,2]
[360773462,1747006247736,-1705.85,0.00014987,2]
[360773463,1747006247746,-576.97,0.00014987,2]
[360773464,1747006247756,-1705.85,0.00014987,2]
[360773465,1747006247766,-1084.32,0.00014987,2]
[360773466,1747006247776,-1084.32,0.00014987,2]
[360773467,1747006247786,-1084.32,0.00014987,2]
[360773468,1747006247795,-1084.32,0.00014987,2]
[360773469,1747006247804,-4083.62,0.00014987,2]
[360773470,1747006247814,-4083.62,0.00014987,2]
[360773471,1747006247823,-4083.62,0.00014987,2]
[360773472,1747006247833,-400.0,0.00014987,2]
[360773473,1747006247843,-400.0,0.00014987,2]
[360773474,1747006247852,-400.0,0.00014987,2]
[360773475,1747006247862,-750.42,0.00014987,2]
[360773476,1747006247871,-400.0,0.00014987,2]
[360773477,1747006247880,-750.42,0.00014987,2]
[360773478,1747006247890,-750.42,0.00014987,2]
[360773479,1747006247900,-549.21903976,0.00014987,2]
[360773480,1747006247909,-151.0,0.00014987,2]
[360773481,1747006247919,-400.0,0.00014987,2]
[360773482,1747006247929,-400.0,0.00014987,2]
[360773483,1747006247938,-400.0,0.00014987,2]
[360773484,1747006247950,-400.0,0.00014987,2]
[360773485,1747006247960,-400.0,0.00014987,2]
[360773486,1747006247970,-385.53956274,0.00014987,2]
[360773487,1747006247980,-400.0,0.00014987,2]
[360773488,1747006247991,-400.0,0.00014987,2]
[360773489,1747006248000,-400.0,0.00014987,2]
[360773490,1747006248010,-400.0,0.00014987,2]
[360773491,1747006248020,-422.24234377,0.00014987,2]
[360773492,1747006248031,-400.0,0.00014987,2]
[360773493,1747006248040,-400.0,0.00014987,2]
[360773494,1747006248049,-232.28039487,0.00014987,2]
[360773495,1747006248060,-941.82,0.00014987,2]
[360773496,1747006248070,-568.93,0.00014987,2]
[360773497,1747006248083,-941.82,0.00014987,2]
[360773498,1747006248092,-568.93,0.00014987,2]
[360773499,1747006248102,-941.82,0.00014987,2]
[360773500,1747006248111,-568.93,0.00014987,2]
[360773501,1747006248122,-568.93,0.00014987,2]
[360773502,1747006248132,-400.0,0.00014987,2]
[360773503,1747006248141,-400.0,0.00014987,2]
[360773504,1747006248151,-400.0,0.00014987,2]
[360773505,1747006248160,-287.37174493,0.00014987,2]
[360773506,1747006248170,-4301.46,0.00014987,2]
[360773507,1747006248179,-400.0,0.00014987,2]
[360773508,1747006248188,-4301.46,0.00014987,2]
[360773509,1747006248199,-400.0,0.00014987,2]
[360773510,1747006248209,-400.0,0.00014987,2]
[360773511,1747006248219,-510.1,0.00014987,2]
[360773512,1747006248228,-400.0,0.00014987,2]
[360773513,1747006248237,-510.1,0.00014987,2]
[360773514,1747006248247,-11878.46,0.00014987,2]
[360773515,1747006248256,-400.0,0.00014987,2]
[360773516,1747006248265,-510.1,0.00014987,2]
[360773517,1747006248275,-1165.57,0.00014987,2]
[360773518,1747006248284,-11878.46,0.00014987,2]
[360773519,1747006248294,-11878.46,0.00014987,2]
[360773520,1747006248303,-1061.86,0.00014987,2]
[360773521,1747006248313,-1061.86,0.00014987,2]
[360773522,1747006248322,-1061.86,0.00014987,2]
[360773523,1747006248332,-400.0,0.00014987,2]
[360773524,1747006248341,-500.0,0.00014987,2]
[360773525,1747006248351,-400.0,0.00014987,2]
[360773526,1747006248361,-400.0,0.00014987,2]
[360773527,1747006248370,-2686.37,0.00014987,2]
[360773528,1747006248380,-2686.37,0.00014987,2]
[360773529,1747006248390,-2686.37,0.00014987,2]
[360773530,1747006248400,-950.71,0.00014987,2]
[360773531,1747006248410,-949.73,0.00014987,2]
[360773532,1747006248420,-400.0,0.00014987,2]
[360773533,1747006248429,-949.73,0.00014987,2]
[360773534,1747006248439,-3072.98,0.00014987,2]
[360773535,1747006248450,-3072.98,0.00014987,2]
[360773536,1747006248460,-1196.67697126,0.00014987,2]
[360773537,1747006250284,-542.82882669,0.00014888,2]
[360773538,1747006250293,-1876.30302874,0.00014987,2]
[360773539,1747006250303,-400.0,0.00014987,2]
[360773540,1747006250312,-400.0,0.00014987,2]
[360773541,1747006250324,-400.0,0.00014987,2]
[360773542,1747006250334,-400.0,0.00014987,2]
[360773543,1747006250346,-3459.03,0.00014987,2]
[360773544,1747006250358,-771.73814457,0.00014987,2]
[360773545,1747006250402,-400.0,0.00014986,2]
[360773546,1747006250411,-2687.29185543,0.00014987,2]
[360773547,1747006250420,-8414.36,0.00014987,2]
[360773548,1747006250430,-400.0,0.00014987,2]
[360773549,1747006250439,-8414.36,0.00014987,2]
[360773550,1747006250450,-8414.36,0.00014987,2]
[360773551,1747006250459,-2714.55,0.00014987,2]
[360773552,1747006250468,-2714.55,0.00014987,2]
[360773553,1747006250478,-2714.55,0.00014987,2]
[360773554,1747006250488,-1148.58,0.00014987,2]
[360773555,1747006250497,-1148.58,0.00014987,2]
[360773556,1747006250507,-1148.58,0.00014987,2]
[360773557,1747006250517,-400.0,0.00014987,2]
[360773558,1747006250528,-400.0,0.00014987,2]
[360773559,1747006250537,-540.00695184,0.00014987,2]
[360773560,1747006250547,-400.0,0.00014987,2]
[360773561,1747006250555,-400.0,0.00014987,2]
[360773562,1747006250566,-400.0,0.00014987,2]
[360773563,1747006250576,-230.07879655,0.00014987,2]
[360773564,1747006250586,-400.0,0.00014987,2]
[360773565,1747006250595,-400.0,0.00014987,2]
[360773566,1747006250604,-435.77,0.00014987,2]
[360773567,1747006250615,-2106.49,0.00014987,2]
[360773568,1747006250624,-8162.33,0.00014987,2]
[360773569,1747006250634,-2106.49,0.00014987,2]
[360773570,1747006250646,-8162.33,0.00014987,2]
[360773571,1747006250656,-8162.33,0.00014987,2]
[360773572,1747006250667,-400.0,0.00014987,2]
[360773573,1747006250677,-400.0,0.00014987,2]
[360773574,1747006250686,-400.0,0.00014987,2]
[360773575,1747006250698,-400.0,0.00014987,2]
[360773576,1747006250707,-400.0,0.00014987,2]
[360773577,1747006250716,-400.0,0.00014987,2]
[360773578,1747006250725,-400.0,0.00014987,2]
[360773579,1747006250735,-391.82713505,0.00014987,2]
[360773580,1747006250744,-22920.19,0.00014987,2]
[360773581,1747006250753,-22920.19,0.00014987,2]
[360773582,1747006250762,-22920.19,0.00014987,2]
[360773583,1747006250772,-22920.19,0.00014987,2]
[360773584,1747006250782,-1593.2,0.00014987,2]
[360773585,1747006250791,-1593.2,0.00014987,2]
[360773586,1747006250800,-570.65,0.00014987,2]
[360773587,1747006250810,-570.65,0.00014987,2]
[360773588,1747006250819,-570.65,0.00014987,2]
[360773589,1747006250829,-400.0,0.00014987,2]
[360773590,1747006250839,-400.0,0.00014987,2]
[360773591,1747006250849,-400.0,0.00014987,2]
[360773592,1747006250858,-400.0,0.00014987,2]
[360773593,1747006250867,-400.0,0.00014987,2]
[360773594,1747006250877,-400.0,0.00014987,2]
[360773595,1747006250886,-515.66,0.00014987,2]
[360773596,1747006250897,-290.21329116,0.00014987,2]
[360773597,1747006250907,-515.66,0.00014987,2]
[360773598,1747006250916,-500.0,0.00014987,2]
[360773599,1747006250926,-515.66,0.00014987,2]
[360773600,1747006250935,-500.0,0.00014987,2]
[360773601,1747006250945,-500.0,0.00014987,2]
[360773602,1747006250954,-400.0,0.00014987,2]
[360773603,1747006250964,-400.0,0.00014987,2]
[360773604,1747006250973,-400.0,0.00014987,2]
[360773605,1747006250987,-2481.64,0.00014987,2]
[360773606,1747006250996,-986.11,0.00014987,2]
[360773607,1747006251006,-986.11,0.00014987,2]
[360773608,1747006251015,-2481.64,0.00014987,2]
[360773609,1747006251026,-400.0,0.00014987,2]
[360773610,1747006251036,-2481.64,0.00014987,2]
[360773611,1747006251046,-400.0,0.00014987,2]
[360773612,1747006251056,-400.0,0.00014987,2]
[360773613,1747006251065,-681.71,0.00014987,2]
[360773614,1747006251075,-400.0,0.00014987,2]
[360773615,1747006251084,-647.7,0.00014987,2]
[360773616,1747006251093,-681.71,0.00014987,2]
[360773617,1747006251102,-400.0,0.00014987,2]
[360773618,1747006251111,-647.7,0.00014987,2]
[360773619,1747006251121,-681.71,0.00014987,2]
[360773620,1747006251130,-400.0,0.00014987,2]
[360773621,1747006251139,-647.7,0.00014987,2]
[360773622,1747006251149,-400.0,0.00014987,2]
[360773623,1747006251158,-691.73,0.00014987,2]
[360773624,1747006251167,-6540.63,0.00014987,2]
[360773625,1747006251176,-691.73,0.00014987,2]
[360773626,1747006251186,-6540.63,0.00014987,2]
[360773627,1747006251196,-691.73,0.00014987,2]
[360773628,1747006251206,-6540.63,0.00014987,2]
[360773629,1747006251215,-151.0,0.00014987,2]
[360773630,1747006251224,-151.0,0.00014987,2]
[360773631,1747006251233,-2129.33,0.00014987,2]
[360773632,1747006251243,-151.0,0.00014987,2]
[360773633,1747006251252,-1560.2,0.00014987,2]
[360773634,1747006251261,-151.0,0.00014987,2]
[360773635,1747006251271,-1804.78,0.00014987,2]
[360773636,1747006251280,-441.9394754,0.00014987,2]
[360773637,1747006251289,-1804.78,0.00014987,2]
[360773638,1747006251298,-1681.94,0.00014987,2]
[360773639,1747006251307,-1681.94,0.00014987,2]
[360773640,1747006251317,-1681.94,0.00014987,2]
[360773641,1747006251326,-400.0,0.00014987,2]
[360773642,1747006251335,-1681.94,0.00014987,2]
[360773643,1747006251345,-400.0,0.00014987,2]
[360773644,1747006251354,-400.0,0.00014987,2]
[360773645,1747006251364,-400.0,0.00014987,2]
[360773646,1747006251374,-400.0,0.00014987,2]
[360773647,1747006251383,-400.0,0.00014987,2]
[360773648,1747006251394,-400.0,0.00014987,2]
[360773649,1747006251404,-761.56,0.00014987,2]
[360773650,1747006251414,-400.0,0.00014987,2]
[360773651,1747006251423,-761.56,0.00014987,2]
[360773652,1747006251434,-206.64849777,0.00014987,2]
[360773653,1747006251444,-418.6,0.00014987,2]
[360773654,1747006251453,-2082.43,0.00014987,2]
[360773655,1747006251462,-2082.43,0.00014987,2]
[360773656,1747006251471,-2730.66,0.00014987,2]
[360773657,1747006251481,-2082.43,0.00014987,2]
[360773658,1747006251490,-2730.66,0.00014987,2]
[360773659,1747006251500,-3214.59,0.00014987,2]
[360773660,1747006251510,-736.17,0.00014987,2]
[360773661,1747006251519,-665.53,0.00014987,2]
[360773662,1747006251529,-837.89,0.00014987,2]
[360773663,1747006251540,-665.53,0.00014987,2]
[360773664,1747006251551,-1427.34,0.00014987,2]
[360773665,1747006251560,-665.53,0.00014987,2]
[360773666,1747006251569,-837.89,0.00014987,2]
[360773667,1747006251579,-1427.34,0.00014987,2]
[360773668,1747006251588,-837.89,0.00014987,2]
[360773669,1747006251598,-400.0,0.00014987,2]
[360773670,1747006251608,-400.0,0.00014987,2]
[360773671,1747006251619,-400.0,0.00014987,2]
[360773672,1747006251631,-400.0,0.00014987,2]
[360773673,1747006251641,-400.0,0.00014987,2]
[360773674,1747006251650,-400.0,0.00014987,2]
[360773675,1747006251659,-400.0,0.00014987,2]
[360773676,1747006251668,-1941.15,0.00014987,2]
[360773677,1747006251679,-1941.15,0.00014987,2]
[360773678,1747006251688,-1941.15,0.00014987,2]
[360773679,1747006251698,-400.0,0.00014987,2]
[360773680,1747006251707,-400.0,0.00014987,2]
[360773681,1747006251717,-4268.16,0.00014987,2]
[360773682,1747006251727,-400.0,0.00014987,2]
[360773683,1747006251736,-4268.16,0.00014987,2]
[360773684,1747006251746,-400.0,0.00014987,2]
[360773685,1747006251756,-400.0,0.00014987,2]
[360773686,1747006251767,-2634.35,0.00014987,2]
[360773687,1747006251777,-400.0,0.00014987,2]
[360773688,1747006251787,-2634.35,0.00014987,2]
[360773689,1747006251797,-1533.59,0.00014987,2]
[360773690,1747006251807,-2634.35,0.00014987,2]
[360773691,1747006251816,-1533.59,0.00014987,2]
[360773692,1747006251826,-2532.54,0.00014987,2]
[360773693,1747006251835,-2532.54,0.00014987,2]
[360773694,1747006251845,-2532.54,0.00014987,2]
[360773695,1747006251856,-1533.59,0.00014987,2]
[360773696,1747006251866,-400.0,0.00014987,2]
[360773697,1747006251875,-970.51,0.00014987,2]
[360773698,1747006251885,-400.0,0.00014987,2]
[360773699,1747006251894,-970.51,0.00014987,2]
[360773700,1747006251904,-400.0,0.00014987,2]
[360773701,1747006251913,-970.51,0.00014987,2]
[360773702,1747006251922,-1336.92,0.00014987,2]
[360773703,1747006251932,-400.0,0.00014987,2]
[360773704,1747006251941,-400.0,0.00014987,2]
[360773705,1747006251951,-474.4302402,0.00014987,2]
[360773706,1747006251961,-400.0,0.00014987,2]
[360773707,1747006251970,-929.13,0.00014987,2]
[360773708,1747006251981,-400.0,0.00014987,2]
[360773709,1747006251992,-929.13,0.00014987,2]
[360773710,1747006252002,-929.13,0.00014987,2]
[360773711,1747006252012,-400.0,0.00014987,2]
[360773712,1747006252023,-400.0,0.00014987,2]
[360773713,1747006252035,-400.0,0.00014987,2]
[360773714,1747006252045,-440.24655438,0.00014987,2]
[360773715,1747006252057,-1558.54,0.00014987,2]
[360773716,1747006252066,-1558.54,0.00014987,2]
[360773717,1747006252075,-400.0,0.00014987,2]
[360773718,1747006252084,-1910.32,0.00014987,2]
[360773719,1747006252094,-1558.54,0.00014987,2]
[360773720,1747006252104,-1910.32,0.00014987,2]
[360773721,1747006252113,-400.0,0.00014987,2]
[360773722,1747006252122,-1910.32,0.00014987,2]
[360773723,1747006252131,-400.0,0.00014987,2]
[360773724,1747006252140,-327.179705,0.00014987,2]
[360773725,1747006252150,-22644.34,0.00014987,2]
[360773726,1747006252160,-3364.96,0.00014987,2]
[360773727,1747006252169,-22384.59105282,0.00014987,2]
[360773728,1747006252184,-259.74894718,0.00014987,2]
[360773729,1747006252194,-1013.25105282,0.00014987,2]
[360773730,1747006252214,-656.02685526,0.00014987,2]
[360773731,1747006252225,-664.6320972,0.00014987,2]
[360773732,1747006252236,-1031.04999472,0.00014987,2]
[360773733,1747006252246,-3452.55200528,0.00014987,2]
[360773734,1747006252258,-1018.62415343,0.00014987,2]
[360773735,1747006252269,-1890.1,0.00014987,2]
[360773736,1747006252280,-16283.06384129,0.00014987,2]
[360773737,1747006252291,-486.03,0.00014987,2]
[360773738,1747006252300,-486.03,0.00014987,2]
[360773739,1747006252310,-195.19154316,0.00014987,2]
[360773740,1747006252319,-1818.75,0.00014987,2]
[360773741,1747006252328,-2381.08,0.00014987,2]
[360773742,1747006252338,-2381.08,0.00014987,2]
[360773743,1747006252348,-2381.08,0.00014987,2]
[360773744,1747006252357,-400.0,0.00014987,2]
[360773745,1747006252367,-400.0,0.00014987,2]
[360773746,1747006252376,-400.0,0.00014987,2]
[360773747,1747006252386,-400.0,0.00014987,2]
[360773748,1747006252396,-240.64723207,0.00014987,2]
[360773749,1747006252406,-1415.13021765,0.00014987,2]
[360773750,1747006252424,-400.0,0.00014986,2]
[360773751,1747006252433,-93.02978235,0.00014987,2]
[360773752,1747006252442,-95.71821765,0.00014987,2]
[360773753,1747006363142,1000.0,0.00013912,2]
[360773754,1747006426709,-202.85324452,0.00014207,12]
[360773755,1747006442021,-197.39,0.00014207,12]
[360773756,1747006456607,-258.41018952,0.00014207,12]
[360773757,1747006461723,3784.66181183,0.00028,120]
[360773758,1747006472181,-180.42684345,0.00014207,12]
[360773759,1747006487245,-250.0,0.00014207,12]
[360773760,1747006501649,-152.0,0.00014207,12]
[360773761,1747006516641,-159.16296703,0.00014207,12]
[360773762,1747006531581,-192.11888246,0.00014207,12]
[360773763,1747006546631,-153.4,0.00014207,12]
[360773764,1747006561939,-170.9354732,0.00014207,12]
[360773765,1747006576600,-260.91856186,0.00014207,12]
[360773766,1747006583786,235.46,0.00013871,2]
[360773767,1747006585330,-224.27106723,0.00014207,12]
[360773768,1747006591571,-200.0,0.00014207,12]
[360773769,1747006606757,-264.25081543,0.00014207,12]
[360773770,1747006621575,-269.18136954,0.00014207,12]
[360773771,1747006636640,-266.56781503,0.00014207,12]
[360773772,1747006652072,-300.0,0.00014207,12]
[360773773,1747006655331,157.84,0.00013847,2]
[360773774,1747006655515,157.84,0.00013854,2]
[360773775,1747006655841,157.84,0.00013862,2]
[360773776,1747006656141,157.84,0.0001387,2]
[360773777,1747006656296,157.84,0.00013878,2]
[360773778,1747006656443,157.84,0.00013885,2]
[360773779,1747006656739,157.84,0.00013893,2]
[360773780,1747006657156,157.84,0.00013901,2]
[360773781,1747006657322,157.84,0.00013908,2]
[360773782,1747006657975,157.84,0.00013916,2]
[360773783,1747006666661,-372.02277073,0.00014207,12]
[360773784,1747006666684,-2.24351081,0.00014207,12]
[360773785,1747006683310,23900.0,0.00013849,2]
[360773786,1747006748893,158.46,0.00013836,2]
[360773787,1747007074493,250.0,0.00013808,2]
[360773814,1747007248755,363.6,0.00014,2]
[360773818,1747007254864,1153.54,0.00011894,2]
[360773819,1747007255036,1153.54,0.00014158,2]
[360773820,1747007265656,401.53,0.00014,2]
[360773846,1747007432293,-999.99999372,0.00014207,12]
[360773847,1747007432306,-3610.55776397,0.00014207,12]
[360773848,1747007432318,-1146.4819446,0.00014207,12]
[360773849,1747007432562,-1000.0,0.00014207,12]
[360773850,1747007432649,-53250.43029771,0.00014207,12]
[360773851,1747007432659,-1268.91,0.00014207,12]
[360773852,1747007432670,-25760.33,0.00014207,12]
[360773853,1747007432683,-11754.2,0.00014207,12]
[360773854,1747007432693,-4739.49,0.00014207,12]
[360773855,1747007432703,-25734.95,0.00014207,12]
[360773856,1747007432713,-166.39,0.00014507,2]
[360773857,1747007432723,-250.0,0.00014535,2]
[360773858,1747007432736,-300.0,0.00014714,2]
[360773859,1747007432747,-500.0,0.00014715,2]
[360773861,1747007432758,-500.0,0.00014715,2]
[360773862,1747007432768,-203.33291752,0.00014715,2]
[360773863,1747007432778,-500.0,0.00014715,2]
[360773864,1747007432788,-500.0,0.00014715,2]
[360773865,1747007432798,-500.0,0.00014715,2]
[360773866,1747007432808,-500.0,0.00014715,2]
[360773867,1747007432818,-500.0,0.00014715,2]
[360773868,1747007432828,-477.44214102,0.00014715,2]
[360773869,1747007432838,-500.0,0.00014715,2]
[360773870,1747007432848,-500.0,0.00014715,2]
[360773872,1747007432858,-500.0,0.00014715,2]
[360773873,1747007432868,-500.0,0.00014715,2]
[360773875,1747007432877,-500.0,0.00014715,2]
[360773878,1747007432887,-500.0,0.00014715,2]
[360773879,1747007432896,-500.0,0.00014715,2]
[360773880,1747007432906,-150.0,0.00014716,2]
[360773881,1747007432916,-151.0,0.00014716,2]
[360773882,1747007432925,-668.65185757,0.00014716,2]
[360773883,1747007432935,-207.4,0.00014716,2]
[360773884,1747007432945,-150.0,0.00014722,2]
[360773885,1747007432954,-150.0,0.00014728,2]
[360773886,1747007432964,-150.0,0.00014729,2]
[360773887,1747007432974,-150.0,0.0001473,2]
[360773888,1747007432984,-150.0,0.00014738,2]
[360773889,1747007432994,-150.0,0.00014738,2]
[360773890,1747007433004,-150.99,0.00014738,2]
[360773891,1747007433014,-435.64,0.00014738,2]
[360773892,1747007433024,-150.0,0.00014739,2]
[360773893,1747007433034,-6090.19218753,0.0001474,2]
[360773894,1747007433044,-150.0,0.00014741,2]
[360773895,1747007433054,-150.0,0.00014742,2]
[360773896,1747007433064,-150.0,0.00014742,2]
[360773897,1747007433074,-150.0,0.00014742,2]
[360773898,1747007433084,-6090.19218752,0.00014745,2]
[360773899,1747007433094,-190.49026241,0.00014746,2]
[360773900,1747007433103,-341.6645151,0.00014746,2]
[360773901,1747007433113,-172.2229682,0.00014746,2]
[360773902,1747007433123,-185.48836147,0.00014746,2]
[360773903,1747007433133,-233.49960785,0.00014746,2]
[360773904,1747007433143,-150.0,0.00014748,2]
[360773905,1747007433153,-150.0,0.00014748,2]
[360773906,1747007433163,-6090.19218752,0.0001475,2]
[360773907,1747007433172,-150.0,0.00014754,2]
[360773908,1747007433182,-6090.19218752,0.00014755,2]
[360773909,1747007433192,-6090.19218752,0.0001476,2]
[360773910,1747007433202,-150.0,0.00014761,2]
[360773911,1747007433213,-150.0,0.00014765,2]
[360773912,1747007433224,-6090.19218752,0.00014765,2]
[360773913,1747007433234,-150.0,0.00014767,2]
[360773914,1747007433244,-562.72519859,0.00014767,2]
[360773915,1747007433254,-150.0,0.00014769,2]
[360773916,1747007433265,-6090.19218752,0.0001477,2]
[360773917,1747007433275,-903.36207553,0.00014773,2]
[360773918,1747007433285,-150.0,0.00014774,2]
[360773919,1747007433295,-170.25274647,0.00014774,2]
[360773920,1747007433305,-903.36207549,0.00014774,2]
[360773921,1747007433315,-6090.19218752,0.00014775,2]
[360773922,1747007433324,-903.36207549,0.00014776,2]
[360773923,1747007433334,-903.36207549,0.00014777,2]
[360773924,1747007433344,-903.36207549,0.00014778,2]
[360773925,1747007433353,-6090.19218752,0.0001478,2]
[360773926,1747007433363,-199.11034055,0.00014783,2]
[360773927,1747007433372,-1000.0,0.00014785,2]
[360773928,1747007433382,-175.63617785,0.00014785,2]
[360773929,1747007433391,-247.69397793,0.00014785,2]
[360773930,1747007433401,-191.33582662,0.00014785,2]
[360773931,1747007433410,-8206.16317499,0.00014785,2]
[360773932,1747007433420,-6090.19218752,0.00014785,2]
[360773933,1747007433430,-150.0,0.00014786,2]
[360773934,1747007433440,-1520.4755,0.00014786,2]
[360773935,1747007433449,-159.2843,0.00014786,2]
[360773936,1747007433460,-41700.0,0.00014786,2]
[360773937,1747007433470,-25796.4958,0.00014786,2]
[360773938,1747007433480,-938.0889,0.00014786,2]
[360773939,1747007433490,-150.0,0.00014787,2]
[360773940,1747007433500,-150.0,0.00014795,2]
[360773941,1747007433847,-500.0,0.00014795,2]
[360773942,1747007433856,-500.0,0.00014795,2]
[360773943,1747007433866,-500.0,0.00014795,2]
[360773944,1747007433876,-500.0,0.00014795,2]
[360773945,1747007433885,-500.0,0.00014795,2]
[360773946,1747007433895,-500.0,0.00014795,2]
[360773947,1747007433905,-500.0,0.00014795,2]
[360773948,1747007433915,-284.85719985,0.00014795,2]
[360773949,1747007433924,-500.0,0.00014795,2]
[360773950,1747007433934,-600.0,0.00014795,2]
[360773951,1747007433943,-150.0,0.00014796,2]
[360773952,1747007433953,-150.0,0.00014798,2]
[360773953,1747007433962,-150.0,0.00014805,2]
[360773954,1747007433972,-150.0,0.00014807,2]
[360773955,1747007433981,-150.0,0.00014808,2]
[360773956,1747007433992,-150.0,0.00014809,2]
[360773957,1747007434002,-150.0,0.0001481,2]
[360773958,1747007434011,-247.69397793,0.0001481,2]
[360773959,1747007434020,-12500.0,0.00014812,2]
[360773960,1747007434030,-150.0,0.00014812,2]
[360773961,1747007434039,-150.0,0.00014815,2]
[360773962,1747007434049,-150.0,0.00014816,2]
[360773963,1747007434059,-150.0,0.00014817,2]